[Event "Early-Titled-Tuesday-Blitz-April-16-2024"]
[Site "Chess.com"]
[Date "2024.04.16"]
[Round "11"]
[White "LegenDaDaDa"]
[Black "lcmil"]
[Result "1/2-1/2"]
[WhiteElo "2326"]
[BlackElo "2513"]
[TimeControl "180+1"]
[EndTime "10:10:13 PDT"]
[Termination "Game drawn by agreement"]

1. d4 {[%clk 0:03:00.9]} 1... Nf6 {[%clk 0:02:58.7]} 2. c4 {[%clk 0:03:00.7]}
2... g6 {[%clk 0:02:59]} 3. Nc3 {[%clk 0:02:59.1]} 3... Bg7 {[%clk 0:02:59.4]}
4. e4 {[%clk 0:02:59.2]} 4... d6 {[%clk 0:02:59.7]} 5. Nf3 {[%clk 0:02:59.6]}
5... O-O {[%clk 0:03:00.2]} 6. Be2 {[%clk 0:03:00]} 6... e5 {[%clk 0:02:59.7]}
7. Be3 {[%clk 0:02:59.9]} 7... Ng4 {[%clk 0:02:58.9]} 8. Bg5 {[%clk 0:02:59.8]}
8... f6 {[%clk 0:02:59.2]} 9. Bh4 {[%clk 0:02:59.1]} 9... g5 {[%clk 0:02:58.9]}
10. Bg3 {[%clk 0:02:58.8]} 10... Nc6 {[%clk 0:02:41]} 11. d5 {[%clk 0:02:55.7]}
11... Ne7 {[%clk 0:02:38.7]} 12. Nd2 {[%clk 0:02:54.7]} 12... Nh6 {[%clk
0:02:35.7]} 13. f3 {[%clk 0:02:52.7]} 13... f5 {[%clk 0:02:34.6]} 14. Bf2 {[%clk
0:02:52.5]} 14... f4 {[%clk 0:02:23.2]} 15. g4 {[%clk 0:02:45.1]} 15... c5
{[%clk 0:01:47.9]} 16. h4 {[%clk 0:02:39.3]} 16... Nf7 {[%clk 0:01:41.5]} 17. h5
{[%clk 0:02:30.7]} 17... h6 {[%clk 0:01:41.3]} 18. a3 {[%clk 0:02:30.3]} 18...
Bd7 {[%clk 0:01:33.5]} 19. b4 {[%clk 0:02:28.9]} 19... b6 {[%clk 0:01:31.7]} 20.
b5 {[%clk 0:02:23]} 20... Kh7 {[%clk 0:01:22.8]} 21. a4 {[%clk 0:02:21]} 21...
Nc8 {[%clk 0:01:18.5]} 22. Nb3 {[%clk 0:02:17.8]} 22... a5 {[%clk 0:01:14.7]}
23. Qc2 {[%clk 0:02:12.7]} 23... Bf6 {[%clk 0:01:13.6]} 24. O-O {[%clk
0:02:10.9]} 24... Qc7 {[%clk 0:01:06.3]} 25. Kh1 {[%clk 0:02:09.9]} 25... Bd8
{[%clk 0:01:06.9]} 26. Nd2 {[%clk 0:02:05.9]} 26... Ne7 {[%clk 0:01:07]} 27. Rg1
{[%clk 0:02:04.1]} 27... Ng8 {[%clk 0:01:07.1]} 28. Nf1 {[%clk 0:02:03.6]} 28...
Nf6 {[%clk 0:01:07.1]} 29. Nh2 {[%clk 0:02:03.7]} 29... Qc8 {[%clk 0:01:06.1]}
30. Bd1 {[%clk 0:02:02.8]} 30... Rg8 {[%clk 0:01:00.6]} 31. Rg2 {[%clk
0:01:52.7]} 31... Rg7 {[%clk 0:01:00]} 32. Be2 {[%clk 0:01:52.7]} 32... Be8
{[%clk 0:00:51.9]} 33. Nf1 {[%clk 0:01:45.4]} 33... Ra7 {[%clk 0:00:52.1]} 34.
Rh2 {[%clk 0:01:45.4]} 34... Re7 {[%clk 0:00:49.5]} 35. Nd2 {[%clk 0:01:45.5]}
35... Bd7 {[%clk 0:00:49.2]} 36. Rg1 {[%clk 0:01:45.8]} 36... Re8 {[%clk
0:00:45.4]} 37. Nf1 {[%clk 0:01:45.5]} 37... Reg8 {[%clk 0:00:44.7]} 38. Nd1
{[%clk 0:01:44.3]} 38... Be7 {[%clk 0:00:36.8]} 39. Be1 {[%clk 0:01:43.6]} 39...
Bd8 {[%clk 0:00:36.9]} 40. Bc3 {[%clk 0:01:42.8]} 40... Be7 {[%clk 0:00:36.9]}
41. Nf2 {[%clk 0:01:42.2]} 41... Bd8 {[%clk 0:00:36.3]} 42. Qd1 {[%clk
0:01:39.5]} 42... Bc7 {[%clk 0:00:35.6]} 43. Qe1 {[%clk 0:01:38.5]} 43... Qa8
{[%clk 0:00:34.6]} 1/2-1/2

[Event "Early-Titled-Tuesday-Blitz-April-16-2024"]
[Site "Chess.com"]
[Date "2024.04.16"]
[Round "11"]
[White "dontcatchmeifyoucant"]
[Black "Slovineanu"]
[Result "1-0"]
[WhiteElo "2301"]
[BlackElo "2492"]
[TimeControl "180+1"]
[EndTime "10:10:17 PDT"]
[Termination "dontcatchmeifyoucant won by resignation"]

1. e4 {[%clk 0:03:00.9]} 1... c6 {[%clk 0:02:56.9]} 2. d4 {[%clk 0:03:00.8]}
2... d5 {[%clk 0:02:57.2]} 3. e5 {[%clk 0:03:01.4]} 3... Bf5 {[%clk 0:02:56.6]}
4. Nd2 {[%clk 0:03:00.7]} 4... e6 {[%clk 0:02:53.5]} 5. Nb3 {[%clk 0:02:58.9]}
5... Nd7 {[%clk 0:02:50]} 6. Nf3 {[%clk 0:02:49.9]} 6... a6 {[%clk 0:02:48.6]}
7. Be3 {[%clk 0:02:38.6]} 7... h6 {[%clk 0:02:47]} 8. Bd3 {[%clk 0:02:26.1]}
8... Ne7 {[%clk 0:02:45.9]} 9. O-O {[%clk 0:02:22]} 9... Qc7 {[%clk 0:02:45.6]}
10. c3 {[%clk 0:02:06.2]} 10... g5 {[%clk 0:02:36.4]} 11. Ne1 {[%clk 0:01:52.8]}
11... c5 {[%clk 0:02:28.8]} 12. Nxc5 {[%clk 0:01:49.4]} 12... Nxc5 {[%clk
0:02:27.6]} 13. dxc5 {[%clk 0:01:50.3]} 13... Bg7 {[%clk 0:02:06.8]} 14. Nf3
{[%clk 0:01:22.1]} 14... g4 {[%clk 0:01:53.5]} 15. Nd4 {[%clk 0:01:15.7]} 15...
Bxd3 {[%clk 0:01:52.9]} 16. Qxd3 {[%clk 0:01:16.1]} 16... Bxe5 {[%clk
0:01:50.1]} 17. f4 {[%clk 0:01:15.5]} 17... Bxd4 {[%clk 0:01:25.5]} 18. Bxd4
{[%clk 0:01:13.4]} 18... Nf5 {[%clk 0:01:25.3]} 19. Bxh8 {[%clk 0:01:12]} 19...
Qxc5+ {[%clk 0:01:20.3]} 20. Bd4 {[%clk 0:01:07.8]} 20... Qc7 {[%clk 0:01:15]}
21. Qe2 {[%clk 0:01:06.7]} 21... h5 {[%clk 0:01:11.7]} 22. Qe5 {[%clk
0:01:05.7]} 22... Qxe5 {[%clk 0:01:04.6]} 23. Bxe5 {[%clk 0:01:06.6]} 23... b5
{[%clk 0:01:04.5]} 24. a4 {[%clk 0:01:06.3]} 24... Rb8 {[%clk 0:01:01.7]} 25.
axb5 {[%clk 0:01:05.1]} 25... Rxb5 {[%clk 0:01:01.6]} 26. b4 {[%clk 0:01:01.4]}
26... Rb6 {[%clk 0:01:00.3]} 27. Ra4 {[%clk 0:00:59.6]} 27... Ke7 {[%clk
0:00:49.1]} 28. Rfa1 {[%clk 0:00:59.3]} 28... f6 {[%clk 0:00:49.5]} 29. Bd4
{[%clk 0:00:59]} 1-0

[Event "Early-Titled-Tuesday-Blitz-April-16-2024"]
[Site "Chess.com"]
[Date "2024.04.16"]
[Round "11"]
[White "temus_galaktionov"]
[Black "dropstoneDP"]
[Result "1/2-1/2"]
[WhiteElo "2862"]
[BlackElo "3056"]
[TimeControl "180+1"]
[EndTime "10:10:19 PDT"]
[Termination "Game drawn by repetition"]

1. d4 {[%clk 0:03:00.9]} 1... d5 {[%clk 0:03:00.1]} 2. c4 {[%clk 0:03:00.5]}
2... dxc4 {[%clk 0:03:01]} 3. e3 {[%clk 0:03:00.4]} 3... Nf6 {[%clk 0:03:01.3]}
4. Bxc4 {[%clk 0:03:00.1]} 4... e6 {[%clk 0:03:01.9]} 5. Nf3 {[%clk 0:02:59.9]}
5... a6 {[%clk 0:03:02]} 6. O-O {[%clk 0:02:58.9]} 6... c5 {[%clk 0:03:02.6]} 7.
dxc5 {[%clk 0:02:58.4]} 7... Bxc5 {[%clk 0:03:02.5]} 8. Qxd8+ {[%clk 0:02:58]}
8... Kxd8 {[%clk 0:03:03.4]} 9. Rd1+ {[%clk 0:02:58.6]} 9... Ke7 {[%clk
0:03:03.6]} 10. Nbd2 {[%clk 0:02:59.5]} 10... Rd8 {[%clk 0:03:01.9]} 11. Be2
{[%clk 0:03:00]} 11... Nc6 {[%clk 0:02:56.9]} 12. Ne1 {[%clk 0:03:00.3]} 12...
Ne5 {[%clk 0:02:40.8]} 13. b3 {[%clk 0:03:00.3]} 13... Bd7 {[%clk 0:02:38.2]}
14. Bb2 {[%clk 0:02:59.9]} 14... Bd6 {[%clk 0:02:31.3]} 15. Nd3 {[%clk
0:02:54.3]} 15... Nxd3 {[%clk 0:02:30.9]} 16. Bxd3 {[%clk 0:02:55.2]} 16... Bb5
{[%clk 0:02:30.7]} 17. Nc4 {[%clk 0:02:54.7]} 17... Bxc4 {[%clk 0:01:46.7]} 18.
Bxc4 {[%clk 0:02:55.6]} 18... g6 {[%clk 0:01:46.9]} 19. h3 {[%clk 0:02:51.8]}
19... Rac8 {[%clk 0:01:35.3]} 20. Rac1 {[%clk 0:02:47.3]} 20... Ne4 {[%clk
0:01:25.9]} 21. Kf1 {[%clk 0:02:39.8]} 21... f5 {[%clk 0:01:15.1]} 22. Ke2
{[%clk 0:02:30.3]} 22... Nc5 {[%clk 0:01:11]} 23. Bd3 {[%clk 0:01:55.5]} 23...
Nxd3 {[%clk 0:01:09.7]} 24. Rxd3 {[%clk 0:01:54.7]} 24... Rxc1 {[%clk
0:01:09.6]} 25. Bxc1 {[%clk 0:01:55.6]} 25... Rc8 {[%clk 0:01:10]} 26. Kd1
{[%clk 0:01:55.5]} 26... e5 {[%clk 0:01:09.2]} 27. Bb2 {[%clk 0:01:53.5]} 27...
e4 {[%clk 0:01:07.8]} 28. Rc3 {[%clk 0:01:49.2]} 28... Rxc3 {[%clk 0:01:06.3]}
29. Bxc3 {[%clk 0:01:50.1]} 29... Ke6 {[%clk 0:01:06.7]} 30. Ke2 {[%clk
0:01:44.1]} 30... h5 {[%clk 0:01:07.2]} 31. f3 {[%clk 0:01:44.1]} 31... Kd5
{[%clk 0:01:06.9]} 32. f4 {[%clk 0:01:42.6]} 32... b5 {[%clk 0:01:03.8]} 33. h4
{[%clk 0:01:42.1]} 33... Bc7 {[%clk 0:00:59.3]} 34. g3 {[%clk 0:01:42.1]} 34...
a5 {[%clk 0:00:59.4]} 35. Kd2 {[%clk 0:01:40.1]} 35... a4 {[%clk 0:00:49.7]} 36.
Ke2 {[%clk 0:01:40]} 36... axb3 {[%clk 0:00:39.3]} 37. axb3 {[%clk 0:01:40.9]}
37... Bd6 {[%clk 0:00:39.7]} 38. Kd2 {[%clk 0:01:40.8]} 38... Bc5 {[%clk
0:00:40]} 39. Ke2 {[%clk 0:01:41]} 39... Bd6 {[%clk 0:00:39.7]} 40. Kd2 {[%clk
0:01:41.2]} 40... Bc5 {[%clk 0:00:39.9]} 41. Ke2 {[%clk 0:01:41.3]} 41... Be7
{[%clk 0:00:37.7]} 42. Kd2 {[%clk 0:01:40.3]} 42... Ba3 {[%clk 0:00:38.1]} 43.
Ke2 {[%clk 0:01:39.2]} 43... Bd6 {[%clk 0:00:24.4]} 1/2-1/2

[Event "Early-Titled-Tuesday-Blitz-April-16-2024"]
[Site "Chess.com"]
[Date "2024.04.16"]
[Round "11"]
[White "scarabee43"]
[Black "MomchilPetkov"]
[Result "1-0"]
[WhiteElo "2840"]
[BlackElo "2922"]
[TimeControl "180+1"]
[EndTime "10:10:25 PDT"]
[Termination "scarabee43 won by resignation"]

1. Nf3 {[%clk 0:03:00.9]} 1... d5 {[%clk 0:03:00]} 2. e3 {[%clk 0:03:00.8]} 2...
Nf6 {[%clk 0:03:00.7]} 3. c4 {[%clk 0:03:00.9]} 3... e6 {[%clk 0:03:01.4]} 4. b3
{[%clk 0:03:00.7]} 4... Bd6 {[%clk 0:03:02]} 5. Bb2 {[%clk 0:03:00.7]} 5... O-O
{[%clk 0:03:02.8]} 6. Be2 {[%clk 0:03:00.5]} 6... Nc6 {[%clk 0:03:02.9]} 7. Nc3
{[%clk 0:02:59.8]} 7... dxc4 {[%clk 0:02:55.5]} 8. bxc4 {[%clk 0:02:59.5]} 8...
e5 {[%clk 0:02:55.8]} 9. O-O {[%clk 0:02:55.7]} 9... Re8 {[%clk 0:02:56.2]} 10.
d3 {[%clk 0:02:50.2]} 10... h6 {[%clk 0:02:56.3]} 11. Nd2 {[%clk 0:02:49.5]}
11... Bf5 {[%clk 0:02:55.9]} 12. Qb3 {[%clk 0:02:38]} 12... Qd7 {[%clk
0:02:55.2]} 13. Rad1 {[%clk 0:02:36.1]} 13... a6 {[%clk 0:02:50.5]} 14. Nde4
{[%clk 0:02:34.9]} 14... Be7 {[%clk 0:02:24.1]} 15. Nxf6+ {[%clk 0:02:32.8]}
15... Bxf6 {[%clk 0:02:25]} 16. Nd5 {[%clk 0:02:33.3]} 16... Bd8 {[%clk
0:02:25.8]} 17. Bc3 {[%clk 0:02:27.1]} 17... Rb8 {[%clk 0:02:25.7]} 18. a4
{[%clk 0:02:25.9]} 18... Be6 {[%clk 0:02:25.6]} 19. Bf3 {[%clk 0:02:25.5]} 19...
f6 {[%clk 0:02:18.6]} 20. d4 {[%clk 0:02:22.2]} 20... exd4 {[%clk 0:02:18.4]}
21. exd4 {[%clk 0:02:22.9]} 21... Bg4 {[%clk 0:01:47.1]} 22. Bxg4 {[%clk
0:02:15.4]} 22... Qxg4 {[%clk 0:01:47.2]} 23. h3 {[%clk 0:02:15.7]} 23... Qd7
{[%clk 0:01:41.6]} 24. Rfe1 {[%clk 0:02:14.6]} 24... Be7 {[%clk 0:01:41.1]} 25.
c5 {[%clk 0:02:09.8]} 25... Kh8 {[%clk 0:01:41.5]} 26. Nf4 {[%clk 0:02:09.2]}
26... Qf5 {[%clk 0:01:26.7]} 27. Ne6 {[%clk 0:02:09.3]} 27... b6 {[%clk
0:01:15.4]} 28. Nxc7 {[%clk 0:01:36.6]} 28... bxc5 {[%clk 0:01:12.7]} 29. Qe6
{[%clk 0:01:36.9]} 29... Qxe6 {[%clk 0:00:47.7]} 30. Rxe6 {[%clk 0:01:37.1]}
30... Rec8 {[%clk 0:00:47.9]} 31. Rxc6 {[%clk 0:01:35.8]} 31... Rb7 {[%clk
0:00:48.4]} 32. d5 {[%clk 0:01:30.1]} 32... Rbxc7 {[%clk 0:00:37.7]} 33. Rxc7
{[%clk 0:01:29.9]} 33... Rxc7 {[%clk 0:00:38.2]} 34. d6 {[%clk 0:01:30.6]} 34...
Bxd6 {[%clk 0:00:32.8]} 35. Rxd6 {[%clk 0:01:30.7]} 35... Rb7 {[%clk 0:00:31.9]}
36. Rxa6 {[%clk 0:01:30.6]} 36... Rb1+ {[%clk 0:00:32.2]} 37. Kh2 {[%clk
0:01:30.3]} 37... Rc1 {[%clk 0:00:33.1]} 38. Bd2 {[%clk 0:01:30]} 38... Rc2
{[%clk 0:00:33]} 39. Be3 {[%clk 0:01:30.5]} 39... c4 {[%clk 0:00:32.7]} 40. Rc6
{[%clk 0:01:30.3]} 40... c3 {[%clk 0:00:33.5]} 41. a5 {[%clk 0:01:30.4]} 41...
Ra2 {[%clk 0:00:34.2]} 42. a6 {[%clk 0:01:26.3]} 42... c2 {[%clk 0:00:34.2]} 43.
a7 {[%clk 0:01:26.8]} 43... Kh7 {[%clk 0:00:33.9]} 44. Rxc2 {[%clk 0:01:26.1]}
1-0

[Event "Early-Titled-Tuesday-Blitz-April-16-2024"]
[Site "Chess.com"]
[Date "2024.04.16"]
[Round "11"]
[White "Likvidator228"]
[Black "cansun"]
[Result "1-0"]
[WhiteElo "2527"]
[BlackElo "2382"]
[TimeControl "180+1"]
[EndTime "10:10:27 PDT"]
[Termination "Likvidator228 won by resignation"]

1. c4 {[%clk 0:03:00.9]} 1... c5 {[%clk 0:03:00.1]} 2. g3 {[%clk 0:03:00.9]}
2... g6 {[%clk 0:03:00]} 3. Bg2 {[%clk 0:03:01.4]} 3... Bg7 {[%clk 0:03:00.6]}
4. Nc3 {[%clk 0:03:01.9]} 4... Nc6 {[%clk 0:03:00.8]} 5. e3 {[%clk 0:03:00.8]}
5... e6 {[%clk 0:02:59]} 6. Nge2 {[%clk 0:03:00.5]} 6... Nge7 {[%clk 0:02:58.8]}
7. d4 {[%clk 0:03:00.3]} 7... cxd4 {[%clk 0:02:57.8]} 8. Nxd4 {[%clk 0:02:59.6]}
8... Nxd4 {[%clk 0:02:47.6]} 9. exd4 {[%clk 0:02:59.4]} 9... d5 {[%clk
0:02:48.3]} 10. cxd5 {[%clk 0:02:58.9]} 10... Nxd5 {[%clk 0:02:48.9]} 11. Nxd5
{[%clk 0:02:59]} 11... exd5 {[%clk 0:02:49.2]} 12. Qe2+ {[%clk 0:02:56.9]} 12...
Be6 {[%clk 0:02:39]} 13. Qb5+ {[%clk 0:02:56.9]} 13... Qd7 {[%clk 0:02:36.9]}
14. Qxd7+ {[%clk 0:02:57]} 14... Kxd7 {[%clk 0:02:35.4]} 15. Be3 {[%clk
0:02:57.7]} 15... Rac8 {[%clk 0:02:32.9]} 16. Kd2 {[%clk 0:02:57.7]} 16... Rc6
{[%clk 0:02:29.6]} 17. Rac1 {[%clk 0:02:57.5]} 17... Rhc8 {[%clk 0:02:28.7]} 18.
Rxc6 {[%clk 0:02:58]} 18... Rxc6 {[%clk 0:02:28.4]} 19. h4 {[%clk 0:02:57.3]}
19... h5 {[%clk 0:02:24.8]} 20. Bf3 {[%clk 0:02:44.7]} 20... Rc4 {[%clk
0:02:19.8]} 21. Rc1 {[%clk 0:02:27.7]} 21... Bxd4 {[%clk 0:02:06.5]} 22. Rxc4
{[%clk 0:02:27.4]} 22... Bxe3+ {[%clk 0:02:05.6]} 23. Kxe3 {[%clk 0:02:27.6]}
23... dxc4 {[%clk 0:02:03.9]} 24. Bxb7 {[%clk 0:02:28.2]} 24... c3 {[%clk
0:01:55.4]} 25. b3 {[%clk 0:02:28.1]} 25... Bf5 {[%clk 0:01:50.6]} 26. Ba6
{[%clk 0:02:22.3]} 26... Bb1 {[%clk 0:01:44.5]} 27. a3 {[%clk 0:02:16.9]} 27...
Bf5 {[%clk 0:01:10.9]} 28. Bd3 {[%clk 0:02:11]} 28... c2 {[%clk 0:01:08.8]} 29.
Bxf5+ {[%clk 0:02:10]} 29... gxf5 {[%clk 0:01:06.1]} 30. Kd2 {[%clk 0:02:10.6]}
30... Kd6 {[%clk 0:01:05.4]} 31. Kxc2 {[%clk 0:02:10.8]} 31... Ke5 {[%clk
0:01:05.7]} 32. Kd3 {[%clk 0:02:10.5]} 32... f4 {[%clk 0:01:04.7]} 33. b4 {[%clk
0:02:06.6]} 33... Kf5 {[%clk 0:01:03.5]} 34. b5 {[%clk 0:01:45.8]} 34... Kg4
{[%clk 0:00:56.7]} 35. a4 {[%clk 0:01:44.9]} 35... fxg3 {[%clk 0:00:55.1]} 36.
fxg3 {[%clk 0:01:45.8]} 36... Kxg3 {[%clk 0:00:54.6]} 37. a5 {[%clk 0:01:46.1]}
37... f5 {[%clk 0:00:33.5]} 38. b6 {[%clk 0:01:42.4]} 38... axb6 {[%clk
0:00:26.8]} 39. axb6 {[%clk 0:01:42.4]} 39... f4 {[%clk 0:00:27.4]} 40. b7
{[%clk 0:01:42.7]} 40... f3 {[%clk 0:00:25.4]} 41. b8=Q+ {[%clk 0:01:43.6]}
41... Kg2 {[%clk 0:00:21.9]} 42. Qg8+ {[%clk 0:01:41.1]} 42... Kh1 {[%clk
0:00:21.5]} 43. Ke3 {[%clk 0:01:36.8]} 1-0

[Event "Early-Titled-Tuesday-Blitz-April-16-2024"]
[Site "Chess.com"]
[Date "2024.04.16"]
[Round "11"]
[White "Root_21"]
[Black "SahibSinghKnight"]
[Result "1-0"]
[WhiteElo "2652"]
[BlackElo "2637"]
[TimeControl "180+1"]
[EndTime "10:10:28 PDT"]
[Termination "Root_21 won by resignation"]

1. e4 {[%clk 0:02:59.8]} 1... e6 {[%clk 0:02:59.8]} 2. d4 {[%clk 0:02:59.2]}
2... d5 {[%clk 0:02:59.4]} 3. Nc3 {[%clk 0:02:59.5]} 3... Nf6 {[%clk 0:02:56.9]}
4. Bg5 {[%clk 0:02:59]} 4... Bb4 {[%clk 0:02:56.6]} 5. e5 {[%clk 0:02:57.8]}
5... h6 {[%clk 0:02:56.6]} 6. Bc1 {[%clk 0:02:57.5]} 6... Ne4 {[%clk 0:02:55.5]}
7. Qg4 {[%clk 0:02:56.1]} 7... g6 {[%clk 0:02:55.1]} 8. Ne2 {[%clk 0:02:55.4]}
8... c5 {[%clk 0:02:43.7]} 9. a3 {[%clk 0:02:55.2]} 9... Bxc3+ {[%clk
0:02:38.4]} 10. Nxc3 {[%clk 0:02:55.4]} 10... Qa5 {[%clk 0:02:32.9]} 11. b4
{[%clk 0:02:50.8]} 11... cxb4 {[%clk 0:02:30.4]} 12. Nxe4 {[%clk 0:02:50.9]}
12... dxe4 {[%clk 0:02:27.3]} 13. Bd2 {[%clk 0:02:43.3]} 13... Qd5 {[%clk
0:02:22.2]} 14. Bxb4 {[%clk 0:02:31.7]} 14... Nc6 {[%clk 0:02:18.2]} 15. Rd1
{[%clk 0:02:27.4]} 15... a5 {[%clk 0:02:16]} 16. c4 {[%clk 0:02:21.9]} 16... Qd8
{[%clk 0:01:58.3]} 17. Bd6 {[%clk 0:02:20.5]} 17... a4 {[%clk 0:00:57.5]} 18.
Qxe4 {[%clk 0:02:10.4]} 18... Bd7 {[%clk 0:00:44.4]} 19. Bd3 {[%clk 0:02:05.3]}
19... Qa5+ {[%clk 0:00:42.8]} 20. Rd2 {[%clk 0:02:05.5]} 20... Qb6 {[%clk
0:00:42.8]} 21. Bc5 {[%clk 0:02:01.7]} 21... Qa5 {[%clk 0:00:34.2]} 22. Qf4
{[%clk 0:02:01.4]} 22... b6 {[%clk 0:00:29.7]} 23. Bd6 {[%clk 0:01:58]} 23... f5
{[%clk 0:00:12.8]} 24. exf6 {[%clk 0:01:54]} 24... Kf7 {[%clk 0:00:12.9]} 25.
O-O {[%clk 0:01:51]} 25... Qc3 {[%clk 0:00:10.1]} 26. d5 {[%clk 0:01:40.5]}
26... Nd4 {[%clk 0:00:03.9]} 27. Qg3 {[%clk 0:01:32.4]} 27... Nf5 {[%clk
0:00:02.5]} 28. Bxf5 {[%clk 0:01:32.2]} 28... Qxg3 {[%clk 0:00:02.5]} 29. Bxe6+
{[%clk 0:01:32.7]} 29... Bxe6 {[%clk 0:00:02.7]} 30. dxe6+ {[%clk 0:01:33.5]}
30... Kxe6 {[%clk 0:00:03]} 31. hxg3 {[%clk 0:01:34]} 1-0

[Event "Early-Titled-Tuesday-Blitz-April-16-2024"]
[Site "Chess.com"]
[Date "2024.04.16"]
[Round "11"]
[White "lrjchess"]
[Black "HanSchut"]
[Result "1-0"]
[WhiteElo "2482"]
[BlackElo "2321"]
[TimeControl "180+1"]
[EndTime "10:10:28 PDT"]
[Termination "lrjchess won by resignation"]

1. e4 {[%clk 0:02:55.6]} 1... c5 {[%clk 0:02:59.6]} 2. b3 {[%clk 0:02:55.1]}
2... d5 {[%clk 0:02:54.4]} 3. exd5 {[%clk 0:02:54.5]} 3... Nf6 {[%clk
0:02:54.6]} 4. c4 {[%clk 0:02:53.3]} 4... e6 {[%clk 0:02:54.6]} 5. dxe6 {[%clk
0:02:53]} 5... Bxe6 {[%clk 0:02:54.4]} 6. Bb2 {[%clk 0:02:53.2]} 6... Nc6 {[%clk
0:02:53.7]} 7. Nf3 {[%clk 0:02:52.2]} 7... Be7 {[%clk 0:02:50.3]} 8. Be2 {[%clk
0:02:46.8]} 8... O-O {[%clk 0:02:48.5]} 9. O-O {[%clk 0:02:47.3]} 9... Qd7
{[%clk 0:02:43.5]} 10. d4 {[%clk 0:02:43.6]} 10... cxd4 {[%clk 0:02:39.4]} 11.
Nxd4 {[%clk 0:02:44.5]} 11... Nxd4 {[%clk 0:02:37.2]} 12. Qxd4 {[%clk 0:02:45]}
12... Rad8 {[%clk 0:02:32.2]} 13. Qxd7 {[%clk 0:02:37.5]} 13... Rxd7 {[%clk
0:02:33.1]} 14. Bf3 {[%clk 0:02:36.3]} 14... Rfd8 {[%clk 0:02:24.9]} 15. Ba3
{[%clk 0:02:26.8]} 15... Bg4 {[%clk 0:02:09.2]} 16. Bxe7 {[%clk 0:02:21.3]}
16... Rxe7 {[%clk 0:02:07.4]} 17. Bxg4 {[%clk 0:02:20.6]} 17... Nxg4 {[%clk
0:02:07.4]} 18. Nc3 {[%clk 0:02:21]} 18... Rd2 {[%clk 0:01:46.6]} 19. Rad1
{[%clk 0:02:19]} 19... Red7 {[%clk 0:01:38]} 20. Rxd2 {[%clk 0:02:18.2]} 20...
Rxd2 {[%clk 0:01:37.9]} 21. Rd1 {[%clk 0:02:17.7]} 21... Rxd1+ {[%clk
0:01:36.9]} 22. Nxd1 {[%clk 0:02:18]} 22... Kf8 {[%clk 0:01:37.4]} 23. f3 {[%clk
0:02:18.1]} 23... Ne5 {[%clk 0:01:35.8]} 24. Nb2 {[%clk 0:02:16.8]} 24... Ke7
{[%clk 0:01:34.6]} 25. Kf2 {[%clk 0:02:17.3]} 25... Kd6 {[%clk 0:01:35.2]} 26.
Ke3 {[%clk 0:02:17.7]} 26... b6 {[%clk 0:01:25.8]} 27. Nd3 {[%clk 0:02:16]}
27... Nc6 {[%clk 0:01:11.8]} 28. Ke4 {[%clk 0:02:14.8]} 28... g6 {[%clk
0:01:09.7]} 29. g4 {[%clk 0:02:14]} 29... Ne7 {[%clk 0:01:05]} 30. g5 {[%clk
0:01:55]} 30... Ng8 {[%clk 0:00:58.3]} 31. f4 {[%clk 0:01:42.4]} 31... f6 {[%clk
0:00:57.8]} 32. b4 {[%clk 0:01:41.3]} 32... f5+ {[%clk 0:00:51.7]} 33. Kd4
{[%clk 0:01:39.8]} 33... Ne7 {[%clk 0:00:52.1]} 34. Ne5 {[%clk 0:01:39.5]} 34...
a6 {[%clk 0:00:44.9]} 35. a4 {[%clk 0:01:35.6]} 35... Ke6 {[%clk 0:00:43.4]} 36.
c5 {[%clk 0:01:34.1]} 36... bxc5+ {[%clk 0:00:43.8]} 37. bxc5 {[%clk 0:01:27.4]}
37... Nd5 {[%clk 0:00:42.7]} 38. Nd3 {[%clk 0:01:26.9]} 38... Nc7 {[%clk
0:00:39.2]} 39. Nb4 {[%clk 0:01:20.8]} 39... a5 {[%clk 0:00:32.5]} 40. Nc6
{[%clk 0:01:19.4]} 40... Nd5 {[%clk 0:00:29.8]} 41. Nd8+ {[%clk 0:01:18.1]} 1-0

[Event "Early-Titled-Tuesday-Blitz-April-16-2024"]
[Site "Chess.com"]
[Date "2024.04.16"]
[Round "11"]
[White "PonyQueen07"]
[Black "Heinza9"]
[Result "0-1"]
[WhiteElo "2200"]
[BlackElo "2326"]
[TimeControl "180+1"]
[EndTime "10:10:28 PDT"]
[Termination "Heinza9 won by checkmate"]

1. c4 {[%clk 0:03:00.9]} 1... f5 {[%clk 0:02:59.1]} 2. Nc3 {[%clk 0:03:00.9]}
2... Nf6 {[%clk 0:02:59.2]} 3. g3 {[%clk 0:03:01]} 3... g6 {[%clk 0:02:58.9]} 4.
Bg2 {[%clk 0:03:01.4]} 4... Bg7 {[%clk 0:02:59.3]} 5. Nf3 {[%clk 0:03:01.6]}
5... O-O {[%clk 0:02:59.6]} 6. O-O {[%clk 0:03:02.2]} 6... d6 {[%clk 0:03:00]}
7. d4 {[%clk 0:03:02.5]} 7... Qe8 {[%clk 0:02:59.3]} 8. Bf4 {[%clk 0:02:57.9]}
8... c6 {[%clk 0:02:53.9]} 9. Qd2 {[%clk 0:02:57.2]} 9... Nh5 {[%clk 0:02:51.2]}
10. Bh6 {[%clk 0:02:54.5]} 10... e5 {[%clk 0:02:51.3]} 11. Bxg7 {[%clk
0:02:53.8]} 11... Nxg7 {[%clk 0:02:49.8]} 12. dxe5 {[%clk 0:02:54.4]} 12... dxe5
{[%clk 0:02:50.2]} 13. e3 {[%clk 0:02:49.1]} 13... e4 {[%clk 0:02:47.3]} 14. Nd4
{[%clk 0:02:42.1]} 14... Nd7 {[%clk 0:02:47.2]} 15. Rad1 {[%clk 0:02:38.6]}
15... Ne5 {[%clk 0:02:47.2]} 16. b3 {[%clk 0:02:31.2]} 16... Bd7 {[%clk
0:02:46.8]} 17. Nde2 {[%clk 0:02:26.4]} 17... Rd8 {[%clk 0:02:45.4]} 18. Qc2
{[%clk 0:02:21.4]} 18... g5 {[%clk 0:02:36.1]} 19. Rd6 {[%clk 0:02:02.6]} 19...
Nf3+ {[%clk 0:02:25.8]} 20. Kh1 {[%clk 0:01:37.5]} 20... Qh5 {[%clk 0:02:23.1]}
21. h3 {[%clk 0:01:22.1]} 21... f4 {[%clk 0:02:16.9]} 22. Rxd7 {[%clk 0:01:21]}
22... Rxd7 {[%clk 0:02:13.8]} 23. Qxe4 {[%clk 0:01:17.4]} 23... Nd2 {[%clk
0:02:11]} 24. Qc2 {[%clk 0:00:47.6]} 24... f3 {[%clk 0:02:00]} 25. Rd1 {[%clk
0:00:39]} 25... fxg2+ {[%clk 0:01:59.4]} 26. Kxg2 {[%clk 0:00:34]} 26... Qf3+
{[%clk 0:01:57.5]} 27. Kh2 {[%clk 0:00:29.9]} 27... Qxf2+ {[%clk 0:01:57.5]} 28.
Kh1 {[%clk 0:00:29.8]} 28... Nf3 {[%clk 0:01:56.2]} 29. Nd4 {[%clk 0:00:20.8]}
29... Qxc2 {[%clk 0:01:29.2]} 30. Nxc2 {[%clk 0:00:21.7]} 30... Rxd1+ {[%clk
0:01:28.6]} 31. Nxd1 {[%clk 0:00:22.6]} 31... Rd8 {[%clk 0:01:27.7]} 32. Nc3
{[%clk 0:00:18.2]} 32... Rd2 {[%clk 0:01:23.1]} 33. Nd4 {[%clk 0:00:05.7]} 33...
Rh2# {[%clk 0:01:22.8]} 0-1